{"text_format":"2","workbook":"xlsx","n_sheets":3,"sheets":["Лист1","Лист2","Лист3"],"not_rendered":{"charts":0,"images":0,"macros":0,"external_links":0,"defined_names":0,"comments":0,"pivot_tables":0},"unopened":[],"bounds":{"document_bytes":16777216,"sheet_cells":100000,"run_cost":"one","rows_first":2000,"rows_last":500,"rows_between":2000,"halvings":0,"cell_chars":16384,"cell_head_chars":4096},"cells_cut":0,"cells_raw":0,"read":"whole","date_system":"1900"}

{"sheet":"Лист1","index":0,"n_rows":14,"n_cols":72,"rows_kept":14,"cut":false,"hidden":false,"merged":[[3,69,4,70],[3,42,4,42],[3,43,4,43],[3,23,4,23],[3,24,4,24],[3,34,4,35],[3,33,4,33],[3,31,4,32],[3,25,4,26],[3,29,4,30],[3,27,4,28],[3,38,4,39],[3,47,4,48],[3,51,4,52],[3,49,4,50],[3,54,4,54],[3,15,4,16],[3,19,4,20],[3,21,4,22],[3,11,4,12],[3,9,4,10],[3,13,4,14],[3,17,4,18],[3,71,4,71],[0,0,0,20],[1,0,1,20],[2,0,2,20],[3,53,4,53],[3,56,4,57],[3,60,4,61],[3,36,4,37],[3,40,4,41],[3,45,4,46],[3,3,4,4],[3,7,4,8],[3,44,4,44],[3,5,4,6],[3,66,4,66],[3,67,4,68],[3,55,4,55],[3,63,4,63],[3,58,4,59],[3,62,4,62],[3,64,4,65]]}
["Отчет о результатах мониторинга качества финансового менеджмента,"]
["осуществляемого главными администраторами средств районного бюджета"]
["Шарангского муниципального  района за 2015 год"]
["№","Наименование главного администратора средств районного бюджета","КВСР","1.1. Своевре - менность представления предвари -тельного (планового) реестра расходных обязательств",null,"1.2. Полнота информации о расходных обязательс-твах",null,"1.3. Сроки представления обоснований бюджетных ассигнований на очередной финансовый год",null,"1.4.  Охват в обоснованиях бюджетных ассигнований на очередной финансовый год показателями непосредственных результатов (пояснительными записками) сумм ассигнований, доведенных Управлением финансов администрации Шарангского района в качестве предельных объемов ассигнований в ходе составления проекта районного бюджета",null,"1.5 Доля бюджетных ассигнований, представленных в программном виде",null,"1.6. Доля бюджетных ассигнований  на предоставление муниципальных услуг в виде субсидий на выполнение муниципальных заданий",null,"1.7.1.  Качество планирования расходов: сумма положительных внесенных изменений в бюджетную роспись в связи с уточнением ассигнований по решению Земского собрания Шарангского района о районном бюджете",null,"1.7.2.  Качество планирования расходов: сумма отрицательных внесенных изменений в бюджетную роспись в связи с уточнением ассигнований по решению Земского собрания Шарангского района о районном бюджете",null,"1.8. Качество планирования расходов: сумма внесенных положительных изменений в бюджетную роспись в связи с передвижками между кодами бюджетной классификации",null,"1. Финансовое планирование",null,"Наименование главного администратора средств районного бюджета","КВСР","2.1. Кассовое исполнение расходов",null,"2.2. Равномер- ность осуществляемых расходов в отчетном фин. году",null,"2.3. Кассовое исполнение муниципальных программ ГРБС",null,"2.4. Своевремен-ность принятия  бюджетных обязательств",null,"2.7. Качество исполнения расходов: наличие просрочен - ной кредиторс-кой задолжен-ности","2.8. Уровень подготовки платежных документов",null,"2.9. Уровень  использования субсидий бюджетными  и автономными учреждениями, предоставленных на  выполнение муниципальных заданий",null,"2.10.Равномерность расходов, осуществляемых бюджетными и автономными уч-ми на выполнение муниципальных заданий",null,"2.Исполнение бюджета в части расходов",null,"Наименование главного администратора средств районного бюджета","КВСР","3.1. Качество правовой базы главного администра-тора доходов районного бюджета по администри-рованию доходов","3.2.  Полнота зачисления   платежей в районный бюджет по главному администра -тору доходов районного бюджета, объем невыясненных поступлений",null,"3.3. Отклонение кассового исполнения по доходам от прогноза по главному администратору доходов районного бюджета",null,"3.4. Эффективность управления дебиторской задолженностью по расчетам с дебиторами по доходам ",null,"3.Исполнение бюджета в части доходов",null,"4.1. Методи - ческие рекоменда- ции (указания) ГРБС по реализации муниципальной учетной политики","4.2. Подготовка и внедрение управленческого учета ","4.3. Степень реализации ведомственного плана повышения эффективности бюджетных расходов","4.4. Динамика объема материальных запасов",null,"4.5.Коэффициент сложности бюджетных ассигнований",null,"4. Учет и отчетность",null,"Наименование главного администратора средств районного бюджета","5.1. Осуществление мероприятий внутреннего  контроля","5.2. Доля  недостач и хищений денежных средств и материальных ценностей",null,"5.Контроль и аудит","6.1.Качество исполнения бюджетных обязательств",null,"6.Исполнение судебных актов",null,"ВСЕГО"]
["п\\п"]
[null,null,null,"%","баллы","%","баллы","%","баллы","%","баллы","%","баллы","%","баллы","%","баллы","%","баллы","%","баллы","%","баллы",null,null,"%","баллы","%","баллы","%","баллы","%","баллы","баллы","%","баллы","%","баллы","%","баллы","%","баллы",null,null,"баллы","%","баллы","%","баллы","%","баллы","%","баллы","баллы","баллы","баллы","%","баллы","%","баллы","%","баллы",null,"баллы","%","баллы","баллы","%","баллы","%","баллы","Количество баллов"]
[null,"1 группа",{"$nulls":21},"1 группа",{"$nulls":18},"1 группа",{"$nulls":19},"1 группа"]
[1,"Районный отдел образования","074",0,5,0,5,0,5,100,5,0.2,1,77.599999999999994,2,98.6,3,97.3,3,95.9,2,{"$f":"SUM(D8+F8+H8+J8+L8+N8+P8+R8+T8)","v":469.6},31,"Районный отдел образования","074",99.9,3,54.1,0,100,3,99.9,10,10,82.9,1,94.4,1,48.7,5,{"$f":"SUM(Z8+AB8+AD8+AF8+AI8+AK8+AM8)","v":579.9},{"$f":"SUM(AA8+AC8+AE8+AG8+AH8+AJ8+AL8+AN8)","v":33},"Районный отдел образования","074","8",0,5,-0.8,10,0,10,{"$f":"SUM(AT8+AV8+AX8)","v":-0.8},{"$f":"SUM(AS8+AU8+AW8+AY8)","v":33},10,10,0,105.2,5,977.5,3,{"$f":"SUM(BE8+BG8)","v":1082.7},{"$f":"SUM(BB8+BC8+BD8+BF8+BH8)","v":28},"Районный отдел образования",5,0,5,{"$f":"SUM(BL8:BN8)","v":10},100,10,{"$f":"SUM(BP8)","v":100},{"$f":"SUM(BQ8)","v":10},{"$f":"SUM(W8+AP8+BA8+BJ8+BO8+BS8)","v":145}]
[2,"Отдел культуры","057",0,5,0,5,0,5,100,5,95.1,3,78.8,3,-0.06,1,-4.8899999999999997,1,99.7,3,368.65,31,"Отдел культуры","057",98.5,2,18,10,98.8,2,95,10,10,99.1,3,99.9,2,27.8,10,{"$f":"SUM(Z9+AB9+AD9+AF9+AI9+AK9+AM9)","v":537.09999999999991},{"$f":"SUM(AA9+AC9+AE9+AG9+AH9+AJ9+AL9+AN9)","v":49},"Отдел культуры","057","8",0,5,0,0,0,10,{"$f":"SUM(AT9+AV9+AX9)","v":0},{"$f":"SUM(AS9+AU9+AW9+AY9)","v":23},10,10,0,0,10,860,2,{"$f":"SUM(BE9+BG9)","v":860},{"$f":"SUM(BB9+BC9+BD9+BF9+BH9)","v":32},"Отдел культуры",5,0,5,{"$f":"SUM(BL9:BN9)","v":10},100,10,{"$f":"SUM(BP9)","v":100},{"$f":"SUM(BQ9)","v":10},{"$f":"SUM(W9+AP9+BA9+BJ9+BO9+BS9)","v":155}]
[3,"Администрация","487",0,5,0,5,0,5,100,5,35.200000000000003,2,30.6,1,61.9,2,61.6,2,92.8,1,382.1,28,"Администрация","487",85.6,1,80.8,0,93.1,1,97,10,10,95.4,2,100,3,39.799999999999997,5,591.69999999999993,32,"Администрация","487","8",0,5,-17.899999999999999,0,0,10,-17.899999999999999,23,10,10,0,0,5,70,1,{"$f":"SUM(BE10+BG10)","v":70},{"$f":"SUM(BB10+BC10+BD10+BF10+BH10)","v":26},"Администрация",5,0,5,10,100,10,100,10,{"$f":"SUM(W10+AP10+BA10+BJ10+BO10+BS10)","v":129}]
[null,"2 группа",{"$nulls":21},"2 группа",{"$nulls":18},"2 группа",{"$nulls":19},"2 группа"]
[1,"Управление сельского хозяйства","082",0,5,0,5,0,5,100,5,2.8,2,null,null,99.8,2,98.3,2,99.6,1,{"$f":"SUM(D12+F12+H12+J12+L12+N12+P12+R12+T12)","v":400.5},{"$f":"SUM(E12+G12+I12+K12+M12+O12+Q12+S12+U12)","v":27},"Управление сельского хозяйства","082",97,1,-60,10,88,1,100,10,10,98.2,1,{"$nulls":4},323.2,33,"Управление сельского хозяйства","082","8",0,5,0,10,0,10,0,33,10,10,0,4.8,10,49.7,2,{"$f":"SUM(BE12+BG12)","v":54.5},{"$f":"SUM(BB12+BC12+BD12+BF12+BH12)","v":32},"Управление сельского хозяйства",5,0,5,10,100,10,100,10,{"$f":"SUM(W12+AP12+BA12+BJ12+BO12+BS12)","v":145}]
[2,"Финансовое управление","001",0,5,0,5,0,5,100,5,0.5,1,null,null,83.1,1,84.3,1,99.7,2,{"$f":"SUM(D13+F13+H13+J13+L13+N13+P13+R13+T13)","v":367.59999999999997},{"$f":"SUM(E13+G13+I13+K13+M13+O13+Q13+S13+U13)","v":25},"Финансовое управление","001",98.3,2,-12.8,10,95.9,2,92.4,10,10,99.6,2,{"$nulls":4},373.4,36,"Финансовое управление","001","8",0,5,35.299999999999997,0,0,10,35.299999999999997,{"$f":"SUM(AS13+AU13+AW13+AY13)","v":23},10,10,0,118,0,43.3,1,{"$f":"SUM(BE13+BG13)","v":161.30000000000001},{"$f":"SUM(BB13+BC13+BD13+BF13+BH13)","v":21},"Финансовое управление",5,0,5,10,100,10,100,10,{"$f":"SUM(W13+AP13+BA13+BJ13+BO13+BS13)","v":125}]
[{"$nulls":34},{"$f":"SUM(AI8:AI13)","v":475.19999999999993}]

{"sheet":"Лист2","index":1,"n_rows":0,"n_cols":0,"rows_kept":0,"cut":false,"hidden":false,"merged":[]}

{"sheet":"Лист3","index":2,"n_rows":0,"n_cols":0,"rows_kept":0,"cut":false,"hidden":false,"merged":[]}